Cogmind - Beta 15 @@@ ROGUE MODE // 2025.06.30 @ 20:27:19 Player: saltine Result: Destroyed by P-60 Hacker with Shock Rifle Performance ------------- Evolutions (3) 1500 Regions Visited (15) 3000 Robots Destroyed (236) 1180 Value Destroyed (9051) 9051 Prototype IDs (41) 820 Alien Tech Used (0) 0 Bonus (4340) 4340 TOTAL SCORE: 19891 Bonus ------- High Alert Combat Kills 1559 Follower Combat Kills 727 Entered Garrisons 800 Used RIF Installer 1000 Aligned with FarCom 300 Friendly Fire -46 Cogmind --------- Core Integrity 0/700 Matter 3/300 Energy 49/100 System Corruption 18% Temperature Cool (0) Movement Core (400) Ox7 Location -7/Garrison Parts ------- > --- POWER (1) -------- (None) > --- PROPULSION (4) --- (None) > --- UTILITY (4) ------ (None) > --- WEAPON (4) ------- Firepult > --- INVENTORY (5) ---- Cargo Storage Unit Peak State ------------ > --- POWER ------------ Micro Nuclear Core > --- PROPULSION ------- Improved Flight Unit Improved VTOL Module Improved VTOL Module Cooled VTOL Module > --- UTILITY ---------- Cargo Storage Unit Cargo Storage Unit > --- WEAPON ----------- PD Laser Railgun > --- INVENTORY -------- Micro Nuclear Core Transmission Jammer Firepult Gauss Rifle Hypervelocity Coil Gun Improved Datajack Hammer [Rating: 56] Favorites ----------- Power Deuterium Engine Engine Deuterium Engine Power Core Micro Nuclear Core Propulsion Improved VTOL Module Treads Light Treads Leg Aluminum Leg Flight Unit Improved VTOL Module Utility Cargo Storage Unit Device Improved Heat Sink Storage Cargo Storage Unit Processor Core Analyzer Hackware Hacking Suite Protection Light Armor Plating Weapon Railgun Energy Gun PD Laser Energy Cannon Advanced Beam Cannon Ballistic Gun Railgun Ballistic Cannon Light Cannon Launcher Rocket Launcher Impact Weapon Hammer Slashing Weapon Great Axe Special Melee Weapon Improved Datajack Build | -11 -10 -10 -9 -9 -9 -8 -8 -8 -8 -7 -7 -7 -7 -7 -7 ------- Run | Yrd Mat Min Mat Min Exi Min Mat Gar Mat Fac Gar Fac Gar Fac Gar Slots Evolved 6 | . . . 2 . . . 2 . . 2 . . . . . Power . | . . . . . . . . . . . . . . . . Propulsion 2 | . . . . . . . 1 . . 1 . . . . . Utility 2 | . . . 1 . . . 1 . . . . . . . . Weapon 2 | . . . 1 . . . . . . 1 . . . . . Parts Attached 140 | 2 9 2 28 2 3 3 34 11 9 15 10 5 6 1 . Power 13 | . 1 1 2 . . . 3 2 1 1 . 1 1 . . Engine 10 | . 1 1 2 . . . 2 2 1 . . . 1 . . Core 3 | . . . . . . . 1 . . 1 . 1 . . . Reactor . | . . . . . . . . . . . . . . . . Propulsion 39 | 2 2 1 10 1 1 . 15 1 2 4 . . . . . Treads 34 | 2 2 1 10 1 1 . 14 1 2 . . . . . . Leg . | . . . . . . . . . . . . . . . . Wheel . | . . . . . . . . . . . . . . . . Hover . | . . . . . . . . . . . . . . . . Flight 5 | . . . . . . . 1 . . 4 . . . . . Utility 48 | . 3 . 6 . 2 . 10 4 6 5 7 2 3 . . Device 11 | . 2 . . . 1 . 4 1 1 . 2 . . . . Storage 4 | . 1 . 1 . . . . . . . . . 2 . . Processor 4 | . . . . . 1 . . . 1 2 . . . . . Hackware 11 | . . . . . . . . . . 3 5 2 1 . . Protection 18 | . . . 5 . . . 6 3 4 . . . . . . Artifact . | . . . . . . . . . . . . . . . . Weapon 40 | . 3 . 10 1 . 3 6 4 . 5 3 2 2 1 . Energy Gun 1 | . . . . . . . . . . . . . 1 . . Energy Cannon 5 | . . . 2 . . . 2 . . . . . . 1 . Ballistic Gun 22 | . 1 . 4 . . 3 3 4 . 3 2 2 . . . Ballistic Cannon 4 | . 2 . 2 . . . . . . . . . . . . Launcher 3 | . . . 2 . . . 1 . . . . . . . . Special Weapon . | . . . . . . . . . . . . . . . . Impact Weapon 1 | . . . . . . . . . . . . . 1 . . Slashing Weapon 2 | . . . . . . . . . . 1 1 . . . . Piercing Weapon . | . . . . . . . . . . . . . . . . Special Melee Weapon 2 | . . . . 1 . . . . . 1 . . . . . Unidentified Prototypes 3 | . . . 1 . . . 1 . . 1 . . . . . Corrupted Parts 1 | . . . . . . . . 1 . . . . . . . System Corruption 5 | . . . . . . . . 5 . . . . . . . Parts Lost 37 | . 2 . 5 . . . 12 6 5 . . 2 . 5 . Power 6 | . 1 . . . . . 2 2 . . . 1 . . . Propulsion 5 | . . . . . . . . 1 . . . . . 4 . Utility 14 | . 1 . 2 . . . 6 3 2 . . . . . . Weapon 12 | . . . 3 . . . 4 . 3 . . 1 . 1 . Highest Loss Streak 7 | . 1 . 3 . . . 7 3 3 . . 1 . 4 . To Critical Strikes 1 | . . . . . . . . . . . . . . 1 . Average Backups 7 | 6 15 19 23 25 24 23 23 22 22 5 3 3 6 1 1 Power 1 | 1 1 1 1 1 1 1 . . 1 1 1 . 1 . . Propulsion . | 4 10 8 7 8 6 6 7 6 6 . . . . . . Utility 1 | . . 2 7 8 8 8 9 10 9 1 . . . 1 1 Weapon 3 | 1 3 7 7 7 8 6 5 5 5 1 2 2 3 . . Tool/Special . | . . . . . . . . . . . . . . . . Unused Backups 31 | . 3 2 4 1 . . 9 . 1 9 1 . 1 . . Power 5 | . . . 1 . . . 1 . 1 1 . . 1 . . Propulsion 11 | . 1 1 1 1 . . 4 . . 3 . . . . . Utility 11 | . 2 . . . . . 4 . . 4 1 . . . . Weapon 3 | . . . 2 . . . . . . 1 . . . . . Tool/Special 1 | . . 1 . . . . . . . . . . . . . Average Slot Usage (%) 68 | . 97 100 98 100 77 99 94 91 97 98 100 99 67 18 . Engine 5 | . 12 14 11 11 11 11 6 8 9 5 . . 5 . . Treads 1 | . 28 28 21 22 22 22 26 27 27 . . . . . . Flight 28 | . . . . . . . . . . 28 30 30 30 13 . Storage 14 | . 14 14 11 11 11 11 9 9 9 . . . 14 . . Energy Gun 6 | . . . . . . . . . . . . . 6 2 . Ballistic Gun 7 | . 14 14 14 . . 31 22 22 26 20 17 19 7 . . Peak Build Rating 56 | 6 11 13 23 22 23 23 41 35 38 49 54 55 56 48 20 Average Rating 52 | 6 9 12 18 21 16 22 33 28 33 44 50 49 53 20 2 On Entrance 26 | 6 6 11 13 21 22 17 23 35 28 35 49 50 50 50 2 Naked Turns 215 | . . . . . . . . . . . . . . 61 154 Heaviest Build 305 | 12 52 52 110 110 99 107 123 115 104 20 20 20 305 22 . Greatest Support 63 | 40 40 40 40 43 43 43 63 60 62 20 20 20 20 15 3 Greatest Overweight (x) 101 | . 1 1 2 2 2 2 2 5 1 1 . . 101 4 . Average Overweight (x) 35 | . . 1 1 2 2 2 1 1 1 . . . 81 . . Largest Inventory Capacity 30 | 8 20 20 25 25 25 25 25 25 25 25 5 5 30 30 5 Average Capacity 29 | 8 17 20 24 25 25 25 25 25 25 5 5 5 29 5 5 Most Carried 25 | 6 20 20 25 25 25 25 25 25 25 25 5 5 9 4 4 Average Carried 8 | 6 15 19 23 25 24 24 24 24 24 5 4 4 7 3 3 Final Capacity 30 | 8 20 20 25 25 25 25 25 25 25 5 5 5 30 5 5 Final Carried 25 | 6 20 20 25 25 25 25 25 25 24 5 5 4 2 4 2 Class Distribution -------------------- 94% | Hauler-Skirmisher Dominant Class ---------------- Mutant | -10/Materials Mutant | -10/Mines Tank | -9/Materials Tank | -9/Mines Mutant | -9/Exiles Scavenger-Tank | -8/Mines Scavenger-Tank | -8/Materials Scavenger-Skirmisher | -8/Garrison Scavenger-Skirmisher | -8/Materials Sprinter | -7/Factory Sprinter | -7/Garrison Sprinter | -7/Factory Hauler-Skirmisher | -7/Garrison Mutant | -7/Factory Mutant | -7/Garrison Resources | -11 -10 -10 -9 -9 -9 -8 -8 -8 -8 -7 -7 -7 -7 -7 -7 ----------- Run | Yrd Mat Min Mat Min Exi Min Mat Gar Mat Fac Gar Fac Gar Fac Gar Matter Collected 7754 | 214 348 66 687 24 . 273 1608 552 564 206 701 578 1919 14 . Remotely 448 | . . . . . . . 295 153 . . . . . . . Salvage Created 9489 | . 400 108 1479 10 . 370 2470 686 735 42 556 602 1987 44 . Parts 544 | . 32 11 91 3 . 19 133 43 31 5 36 46 89 5 . Haulers Intercepted 11 | . 1 . 6 . . . 3 . 1 . . . . . . Recyclers Shooed 7 | . 1 . 1 . . . 3 . 2 . . . . . . Parts Field Recycled . | . . . . . . . . . . . . . . . . Retrieved Matter . | . . . . . . . . . . . . . . . . Parts Self-Destructed . | . . . . . . . . . . . . . . . . Prevented . | . . . . . . . . . . . . . . . . Kills | -11 -10 -10 -9 -9 -9 -8 -8 -8 -8 -7 -7 -7 -7 -7 -7 ------- Run | Yrd Mat Min Mat Min Exi Min Mat Gar Mat Fac Gar Fac Gar Fac Gar Combat Hostiles Destroyed 194 | . 10 4 33 1 . 10 42 23 12 1 18 15 25 . . Guns 111 | . 4 1 12 . . 6 27 7 12 1 7 9 25 . . Cannons 34 | . 6 3 13 1 . . 5 6 . . . . . . . AOE 44 | . . . 6 . . 4 7 10 . . 11 6 . . . Classes Destroyed 19 | . 5 2 5 . . . 5 1 . . . 1 . . . Worker 8 | . . . 1 . . . 3 . 1 . . 2 . 1 . Builder 12 | . 1 1 . . . . 6 . 1 . . 2 . 1 . Tunneler 1 | . . . . . . . . . . . . 1 . . . Hauler 12 | . 1 . 6 . . . 3 . 1 . . . 1 . . Recycler 3 | . . . 1 . . 1 1 . . . . . . . . Mechanic 2 | . 1 . 1 . . . . . . . . . . . . Operator 3 | . 2 . 1 . . . . . . . . . . . . Watcher 2 | . . . . . . . 2 . . . . . . . . Swarmer 50 | . . 1 9 1 . 4 4 8 . . 12 7 4 . . Grunt 93 | . 10 2 13 . . 5 20 9 9 . 6 5 14 . . Brawler 5 | . . . 1 . . . 1 . 2 . . . 1 . . Duelist 4 | . . . 2 . . 1 . 1 . . . . . . . Protector 1 | . . . . . . . 1 . . . . . . . . Sentry 26 | . . . 8 . . . 10 2 1 . . 2 3 . . Specialist 2 | . . . . . . . 2 . . . . . . . . Hunter 4 | . . . . . . . 3 . . . . . 1 . . Programmer 7 | . . . . . . . . 3 . 1 . 1 2 . . Heavy 1 | . . . . . . . 1 . . . . . . . . Assembled 1 | . . 1 . . . . . . . . . . . . . Best Kill Streak 16 | . 4 3 6 1 . 4 16 5 8 1 4 5 9 1 . Combat Bots Only 11 | . 4 3 5 1 . 4 11 5 5 1 4 4 9 . . Max Kills in Single Turn 4 | . 1 1 3 1 . 3 2 4 2 1 4 2 2 1 . Gunslinging 1 | . . . . . . . 1 . . . . . 1 . . Exploded 4 | . . . 3 . . 3 2 4 . . 4 2 . . . Melee . | . . . . . . . . . . . . . . . . Uniques/NPCs Destroyed . | . . . . . . . . . . . . . . . . Combat | -11 -10 -10 -9 -9 -9 -8 -8 -8 -8 -7 -7 -7 -7 -7 -7 -------- Run | Yrd Mat Min Mat Min Exi Min Mat Gar Mat Fac Gar Fac Gar Fac Gar Hostile Shots Fired 808 | . 62 7 108 6 . 22 258 103 76 6 21 31 56 33 19 Missed 246 | . 16 4 30 2 . 8 67 27 22 3 11 12 27 7 10 Hits 562 | . 46 3 78 4 . 14 191 76 54 3 10 19 29 26 9 Melee 19 | . . 1 13 . . 2 . . . . . . . 3 . Projectile 543 | . 46 2 65 4 . 12 191 76 54 3 10 19 29 23 9 AOE 1 | . . . . . . . . . . . . . . . 1 Critical Strikes 35 | . . . 8 . . . 12 5 6 . . 1 . 2 1 Part Disruptions 3 | . . . . . . . . 3 . . . . . . . Damage Taken 9219 | . 555 45 1435 34 . 292 3233 946 854 46 202 339 413 673 152 Core 1439 | . 77 . 182 10 . . 266 104 97 16 65 29 115 414 64 Absorbed by Shields 177 | . . . . . . . . 177 . . . . . . . Regen/Repaired (Parts) 77 | . . . 77 . . . . . . . . . . . . Core Remaining (%) 59 | 100 . 69 . . . 52 . . 15 . . . . . . Volleys Fired 610 | . 72 8 92 4 . 16 126 59 50 6 29 35 109 3 1 Largest 4 | . 2 2 3 2 . 3 3 3 3 3 4 4 4 1 1 Hottest 250 | . 60 50 159 136 . 69 121 121 69 84 114 123 123 250 250 Shots Fired 1515 | . 131 15 242 9 . 44 326 130 145 18 65 78 306 5 1 Gun 1253 | . 89 8 153 . . 42 276 92 145 18 55 67 306 2 . Cannon 219 | . 42 7 84 9 . . 40 33 . . . . . 3 1 Launcher 43 | . . . 5 . . 2 10 5 . . 10 11 . . . Special . | . . . . . . . . . . . . . . . . Kinetic 1317 | . 131 15 170 . . 42 276 92 145 18 55 67 306 . . Thermal 155 | . . . 67 9 . . 40 33 . . . . . 5 1 Explosive 37 | . . . 5 . . 2 4 5 . . 10 11 . . . Electromagnetic 6 | . . . . . . . 6 . . . . . . . . Robot Hit Streak 35 | . 10 3 13 1 . 8 23 9 10 9 7 14 35 4 1 Robot Miss Streak 7 | . 7 3 7 4 . 3 4 3 4 2 2 2 5 4 2 Penetration Max 2 | . . . . . . . 1 . . . . 2 1 . . Secondary Targets 16 | . 1 . 1 . . . 6 2 4 . . . 2 . . Max Gunslinging Chain 1 | . 1 . 1 . . . 1 1 1 . . . 1 . . Autonomous 19 | . . . . . . . . . . . . . . 19 . Shots Hit Robots 906 | . 84 8 144 2 3 26 218 65 94 16 39 61 142 3 1 Core Hits 456 | . 29 6 64 1 . 19 98 44 35 2 27 41 84 5 1 Critical Kills 5 | . . . 2 . . . . . 1 . . 1 1 . . Critical Parts Destroyed 11 | . . . . . . . 2 2 . . . 4 3 . . Critical Strikes 18 | . 2 . 2 . . . 2 2 1 . . 5 4 . . Meltdown 2 | . . . 2 . . . . . . . . . . . . Destroy 14 | . . . . . . . 2 2 1 . . 5 4 . . Blast 2 | . 2 . . . . . . . . . . . . . . Melee Attacks 47 | . . . . . 3 . . . . 8 25 11 . . . Impact . | . . . . . . . . . . . . . . . . Slashing 21 | . . . . . . . . . . 1 20 . . . . Piercing . | . . . . . . . . . . . . . . . . Sneak Attacks 19 | . . . . . 3 . . . . 3 5 8 . . . Combat Hostiles 1 | . . . . . . . . . . . 1 . . . . Follow-up Attacks . | . . . . . . . . . . . . . . . . Damage Inflicted 20587 | . 1020 138 2809 68 . 572 5211 1972 1435 215 1583 1615 3564 280 105 Guns 12110 | . 433 21 836 . . 395 3046 737 1426 215 469 858 3562 112 . Cannons 2963 | . 560 98 1197 41 . . 545 471 . . . . . 28 23 Explosions 4907 | . . . 722 . . 160 1558 754 . . 791 742 . 98 82 Melee 323 | . . . . . . . . . . . 323 . . . . Ramming 284 | . 27 19 54 27 . 17 62 10 9 . . 15 2 42 . Kinetic 12930 | . 993 119 1110 . . 395 3046 737 1426 215 469 858 3562 . . Thermal 2478 | . . . 923 41 . . 700 471 . . . . . 238 105 Explosive 3694 | . . . 722 . . 160 525 754 . . 791 742 . . . Electromagnetic 878 | . . . . . . . 878 . . . . . . . . Impact . | . . . . . . . . . . . . . . . . Slashing 323 | . . . . . . . . . . . 323 . . . . Piercing . | . . . . . . . . . . . . . . . . Highest Corruption 18 | . . . 1 1 1 1 4 18 18 1 1 . 2 18 18 Average Corruption 1 | . . . 1 1 1 1 3 16 18 1 1 . 1 10 18 Corruption Purged 1 | . . . . . . . . . . . 1 . . . . Corruption Blocked . | . . . . . . . . . . . . . . . . Effects 2030 | . . . 30 14 12 9 8 60 42 1 12 . 1825 10 7 Message Errors 661 | . . . 4 3 6 5 1 22 10 . 2 . 602 4 2 Matter Fused 133 | . . . 6 2 2 2 1 10 13 1 3 . 91 1 1 Heat Flow Errors 330 | . . . 5 2 2 . 1 7 2 . 3 . 304 1 3 Energy Discharges 309 | . . . 9 2 . . 1 3 2 . 1 . 290 . 1 Parts Rejected 2 | . . . . . . . . . . . 1 . . 1 . Parts Fused 11 | . . . 1 . 1 . . 1 1 . 1 . 6 . . Data Loss (minor) 323 | . . . 3 3 1 1 2 5 2 . . . 305 1 . Data Loss (major) 141 | . . . 1 1 . . 1 1 1 . 1 . 135 . . Misfires 35 | . . . . 1 . . . 6 4 . . . 24 . . Alerts 73 | . . . . . . 1 1 1 1 . . . 68 1 . Misdirections 1 | . . . . . . . . . . . . . . 1 . Weapon Failures 11 | . . . 1 . . . . 4 6 . . . . . . Overload Shots . | . . . . . . . . . . . . . . . . Overflow Damage 129 | . . . 17 . . . 50 10 . . 44 8 . . . Projectiles 5 | . . . . . . . 5 . . . . . . . . Explosions 85 | . . . 17 . . . 45 10 . . 5 8 . . . Melee 39 | . . . . . . . . . . . 39 . . . . Knockbacks 11 | . 6 . 5 . . . . . . . . . . . . Impact . | . . . . . . . . . . . . . . . . Kinetic 11 | . 6 . 5 . . . . . . . . . . . . Secondary . | . . . . . . . . . . . . . . . . Self-Inflicted Damage 280 | . . . 84 . . 41 24 . . . 56 31 2 42 . Shots 7 | . . . 2 . . 1 1 . . . 2 1 . . . Rammed 34 | . 6 3 9 4 . 3 4 1 1 . . 1 . . 2 Targets Rammed 37 | . 6 4 9 4 . 4 5 1 1 . . 1 . . 2 Kicked . | . . . . . . . . . . . . . . . . Crushed 3 | . . 1 . . . 1 1 . . . . . . . . Highest Temperature 756 | . 42 . 261 348 268 102 175 262 184 32 201 216 271 756 232 Average Temperature 96 | . 23 . 85 140 134 39 18 86 74 14 29 54 96 330 108 Received Heat Transfer 3039 | . 306 12 363 . . 99 1044 315 585 . 9 63 6 225 12 Effects 27 | . . . 1 3 . . . 1 . . . . 7 15 . Energy Bleed 10 | . . . 1 2 . . . . . . . . 5 2 . Interference 6 | . . . . 1 . . . 1 . . . . 2 2 . Matter Decay 2 | . . . . . . . . . . . . . . 2 . Damage (minor) 2 | . . . . . . . . . . . . . . 2 . Damage (major) 6 | . . . . . . . . . . . . . . 6 . Damage (core) 1 | . . . . . . . . . . . . . . 1 . Siege Activations . | . . . . . . . . . . . . . . . . Martial Activations . | . . . . . . . . . . . . . . . . Shielding Activations . | . . . . . . . . . . . . . . . . Robots Disrupted . | . . . . . . . . . . . . . . . . Combat Hostiles . | . . . . . . . . . . . . . . . . Robots Corrupted 5 | . . . . . . . 5 . . . . . . . . Combat Hostiles 3 | . . . . . . . 3 . . . . . . . . Parts Fried 9 | . . . . . . . 9 . . . . . . . . Impact Corruptions . | . . . . . . . . . . . . . . . . Robots Melted 2 | . . . 2 . . . . . . . . . . . . Combat Hostiles 2 | . . . 2 . . . . . . . . . . . . Parts Melted 9 | . . . 5 . . . 1 1 . . . 1 . 1 . Heat Transferred 4401 | . . . 1591 74 . . 1027 569 . . . . . 740 400 Parts Sabotaged . | . . . . . . . . . . . . . . . . Parts Stolen . | . . . . . . . . . . . . . . . . Parts Stripped . | . . . . . . . . . . . . . . . . Power Chain Reactions 1 | . . . . . . . 1 . . . . . . . . Alert | -11 -10 -10 -9 -9 -9 -8 -8 -8 -8 -7 -7 -7 -7 -7 -7 ------- Run | Yrd Mat Min Mat Min Exi Min Mat Gar Mat Fac Gar Fac Gar Fac Gar Maximum Alert Level 5 | . . . 2 . . . 2 3 2 1 3 3 5 5 5 Low Security (%) 2 | 100 100 100 16 100 . 100 61 . . 81 25 . . . . Level 1 . | . . . 57 . . . 20 5 11 18 10 . . . . Level 2 . | . . . 25 . . . 17 22 88 . 18 40 . . . Level 3 . | . . . . . . . . 72 . . 45 59 . . . Level 4 . | . . . . . . . . . . . . . . . . Level 5 94 | . . . . . . . . . . . . . 99 100 100 High Security . | . . . . . . . . . . . . . . . . Max Security . | . . . . . . . . . . . . . . . . Peak Influence 99999 | . 111 94 589 171 . 112 567 1098 534 220 890 977 99999 52499 36678 Initial 52499 | . . . 26 171 . . 22 363 534 209 73 466 672 52499 36673 Average -627 | . 23 15 302 18 . 16 164 792 446 155 543 743 -729 52430 36673 Influence Increases 105884 | . 328 162 1370 60 . 257 1320 815 338 126 857 857 99327 62 5 Destroy 0b10 Robot/C 4400 | . 200 100 840 20 . 200 820 520 240 20 520 420 500 . . Destroy 0b10 Robot/NC 275 | . 25 5 50 . . 5 80 . 15 . 5 50 30 10 . Destroy Leader 792 | . 62 10 202 10 . 30 240 20 52 10 30 86 40 . . Allied During Kill 230 | . . 27 60 . . . . 23 . . 26 94 . . . Successful Hack 171 | . 25 5 83 . . . 8 . . 5 . 16 24 5 . Select Force Hacks 30 | . . . . . . . . . . . . 30 . . . Disable Machine 240 | . . 15 45 . . . 60 . 15 . 15 45 45 . . Anti-Garrison Action 98873 | . . . . . . . . 150 . . 150 . 98573 . . Destroy Structure 423 | . 1 . 60 . . 22 52 72 1 1 96 71 40 2 5 Partial Spotted 90 | . . . . . . . 15 . . 45 . 30 . . . Lose Combat Pursuer 360 | . 15 . 30 30 . . 45 30 15 45 15 15 75 45 . Influence Decreases 69206 | . 328 95 998 499 . 199 819 276 976 481 72 786 289 47670 15718 Entered New Map 65319 | . . . 41 268 . . 36 196 564 251 32 424 289 47500 15718 Time Decay 3089 | . 308 95 737 231 . 199 515 . 362 190 . 342 . 110 . Lost Part 368 | . 20 . 50 . . . 118 60 50 . . 20 . 50 . Lost Ally 130 | . . . 20 . . . . 20 . 40 40 . . 10 . Purge Threat 300 | . . . 150 . . . 150 . . . . . . . . Squads Dispatched 31 | . 4 . 4 . . . 13 . 1 1 . 6 . 2 . Investigation 7 | . 2 . 1 . . . 1 . . . . 2 . 1 . Extermination 4 | . . . . . . . . . . 1 . 2 . 1 . Reinforcement 11 | . 2 . 2 . . . 4 . 1 . . 2 . . . Assault 2 | . . . 1 . . . 1 . . . . . . . . Garrison 7 | . . . . . . . 7 . . . . . . . . Intercept . | . . . . . . . . . . . . . . . . Searches Triggered . | . . . . . . . . . . . . . . . . Construction Impeded 1 | . . . . . . . . . . . . 1 . . . Haulers Reinforced . | . . . . . . . . . . . . . . . . Active Scanning Responses . | . . . . . . . . . . . . . . . . Cargo Convoy Interrupts . | . . . . . . . . . . . . . . . . Stealth | -11 -10 -10 -9 -9 -9 -8 -8 -8 -8 -7 -7 -7 -7 -7 -7 --------- Run | Yrd Mat Min Mat Min Exi Min Mat Gar Mat Fac Gar Fac Gar Fac Gar Distress Signals 14 | . 2 . 6 . . . 2 . 3 . . 1 . . . Communications Jammed 5 | . . . . . . . . . 4 . . 1 . . . Distress Signals 5 | . . . . . . . . . 4 . . 1 . . . Times Spotted 287 | . 22 6 64 3 . 10 53 28 20 8 21 24 20 5 3 Peak Tracking Total 8 | . 4 2 6 2 . 4 8 5 4 3 4 4 6 4 3 Tactical Retreats 16 | . 1 . 1 2 . . 2 2 1 1 1 1 2 2 . Traps | -11 -10 -10 -9 -9 -9 -8 -8 -8 -8 -7 -7 -7 -7 -7 -7 ------- Run | Yrd Mat Min Mat Min Exi Min Mat Gar Mat Fac Gar Fac Gar Fac Gar Traps Triggered 29 | . 1 . 2 . . . 3 13 . . 4 2 4 . . Indirectly . | . . . . . . . . . . . . . . . . Trap Hack Attempts 52 | . . . . . . . . . . . 32 20 . . . Triggered . | . . . . . . . . . . . . . . . . Disarmed . | . . . . . . . . . . . . . . . . Reprogrammed 5 | . . . . . . . . . . . 2 3 . . . Reused . | . . . . . . . . . . . . . . . . Traps Extracted . | . . . . . . . . . . . . . . . . Installed . | . . . . . . . . . . . . . . . . Triggered . | . . . . . . . . . . . . . . . . Machines | -11 -10 -10 -9 -9 -9 -8 -8 -8 -8 -7 -7 -7 -7 -7 -7 ---------- Run | Yrd Mat Min Mat Min Exi Min Mat Gar Mat Fac Gar Fac Gar Fac Gar Machines Disabled 22 | . . 1 3 . . . 4 . 1 . 4 3 6 . . Max in Single Turn 1 | . . . 1 . . . 1 . 1 . 1 1 1 . . Garrison Relay 6 | . . . . . . . . . . . 3 . 3 . . Machines Repaired . | . . . . . . . . . . . . . . . . Machines Dismantled . | . . . . . . . . . . . . . . . . Machines Sabotaged . | . . . . . . . . . . . . . . . . Overloaded Fab Kills . | . . . . . . . . . . . . . . . . Hacking | -11 -10 -10 -9 -9 -9 -8 -8 -8 -8 -7 -7 -7 -7 -7 -7 --------- Run | Yrd Mat Min Mat Min Exi Min Mat Gar Mat Fac Gar Fac Gar Fac Gar Machines Accessed 52 | . 6 1 13 . 2 . 6 2 4 5 3 5 2 3 . Terminals 38 | . 5 1 10 . . . 5 2 4 3 3 2 2 1 . Fabricators 3 | . . . . . . . . . . 1 . 2 . . . Repair Stations 1 | . . . 1 . . . . . . . . . . . . Recycling Units 1 | . 1 . . . . . . . . . . . . . . Scanalyzers 2 | . . . 2 . . . . . . . . . . . . Garrison Access 5 | . . . . . . . 1 . . 1 . 1 . 2 . Total Hacks 158 | . 23 2 56 . 2 . 22 3 11 14 7 9 5 4 . Successful 73 | . 11 1 27 . 2 . 10 . 1 8 2 6 2 3 . Failed 84 | . 12 1 28 . . . 12 3 10 6 5 3 3 1 . Catastrophic 19 | . 2 . 5 . . . 3 . 5 1 1 1 1 . . Database Lockouts 1 | . . . 1 . . . . . . . . . . . . Manual 77 | . 16 . 25 . 1 . 11 . 7 9 5 3 . . . Terminals 131 | . 21 2 47 . . . 20 3 11 9 7 4 5 2 . Fabricators 5 | . . . . . . . . . . 3 . 2 . . . Repair Stations 2 | . . . 2 . . . . . . . . . . . . Recycling Units 2 | . 2 . . . . . . . . . . . . . . Scanalyzers 7 | . . . 7 . . . . . . . . . . . . Garrison Access 9 | . . . . . . . 2 . . 2 . 3 . 2 . Terminal Hacks 43 | . 5 1 17 . 2 . 8 . 1 3 2 1 2 1 . Record 1 | . . . . . 1 . . . . . . . . . . Part Schematic 1 | . . . . . . . . . . . . 1 . . . Robot Analysis 4 | . 1 . 1 . . . 2 . . . . . . . . Prototype ID Bank 5 | . 1 . 3 . . . 1 . . . . . . . . Open Door 1 | . . . . . . . . . . . 1 . . . . Open DSF 1 | . . . . . . . . . . . . . . 1 . Branch Access Points 1 | . . . 1 . . . . . . . . . . . . Emergency Access Points 3 | . . . 1 . . . . . . . 1 . 1 . . Terminal Index 2 | . . . 1 . . . 1 . . . . . . . . Repair Station Index 1 | . . . 1 . . . . . . . . . . . . Unreport Threat 2 | . . . 1 . . . 1 . . . . . . . . Locate Traps 5 | . 1 . 1 . . . 1 . 1 1 . . . . . Transport Status 1 | . . . 1 . . . . . . . . . . . . Hauler Manifests 4 | . 1 . 2 . . . . . . 1 . . . . . Registered Prototypes 1 | . . . 1 . . . . . . . . . . . . Zone Layout 8 | . 1 1 3 . . . 2 . . 1 . . . . . Garrison Registry 1 | . . . . . . . . . . . . . 1 . . Proto ID Catalog 1 | . . . . . 1 . . . . . . . . . . Fabricator Hacks 2 | . . . . . . . . . . 1 . 1 . . . Network Status 2 | . . . . . . . . . . 1 . 1 . . . Repair Station Hacks 2 | . . . 2 . . . . . . . . . . . . Scan Component 1 | . . . 1 . . . . . . . . . . . . Repair 1 | . . . 1 . . . . . . . . . . . . Recycling Unit Hacks 1 | . 1 . . . . . . . . . . . . . . Retrieve Components 1 | . 1 . . . . . . . . . . . . . . Scanalyzer 2 | . . . 2 . . . . . . . . . . . . Insert Component 1 | . . . 1 . . . . . . . . . . . . Analyze 1 | . . . 1 . . . . . . . . . . . . Garrison Access Hacks 7 | . . . . . . . 1 . . 2 . 2 . 2 . Unlock Access 5 | . . . . . . . 1 . . 1 . 1 . 2 . Coupler Status 2 | . . . . . . . . . . 1 . 1 . . . Unauthorized Hacks 16 | . 5 . 6 . . . 1 . . 2 . 2 . . . Terminals 12 | . 5 . 6 . . . 1 . . . . . . . . Botnet 2 | . . . 1 . . . 1 . . . . . . . . Operators 1 | . . . 1 . . . . . . . . . . . . Skim 9 | . 5 . 4 . . . . . . . . . . . . Fabricators 3 | . . . . . . . . . . 2 . 1 . . . Liberate 1 | . . . . . . . . . . 1 . . . . . Haulers 2 | . . . . . . . . . . 1 . 1 . . . Repair Stations . | . . . . . . . . . . . . . . . . Recycling Units . | . . . . . . . . . . . . . . . . Scanalyzers . | . . . . . . . . . . . . . . . . Garrison Access 1 | . . . . . . . . . . . . 1 . . . Eject 1 | . . . . . . . . . . . . 1 . . . Data Cores Recovered . | . . . . . . . . . . . . . . . . Used . | . . . . . . . . . . . . . . . . Hacking Detections 45 | . 6 1 13 . . . 6 2 4 5 2 3 2 1 . Full Trace Events 3 | . . . 1 . . . . 1 . . . . 1 . . Feedback Events . | . . . . . . . . . . . . . . . . Feedback Blocked . | . . . . . . . . . . . . . . . . Robot Schematics Acquired . | . . . . . . . . . . . . . . . . Robots Built . | . . . . . . . . . . . . . . . . Authchips . | . . . . . . . . . . . . . . . . Time . | . . . . . . . . . . . . . . . . Total Robot Build Rating . | . . . . . . . . . . . . . . . . Part Schematics Acquired 1 | . . . . . . . . . . . . 1 . . . Parts Built . | . . . . . . . . . . . . . . . . Authchips . | . . . . . . . . . . . . . . . . Time . | . . . . . . . . . . . . . . . . Total Part Build Rating . | . . . . . . . . . . . . . . . . Parts Repaired 1 | . . . 1 . . . . . . . . . . . . Time 13 | . . . 13 . . . . . . . . . . . . Parts Recycled . | . . . . . . . . . . . . . . . . Recycled Matter . | . . . . . . . . . . . . . . . . Retrieved Matter . | . . . . . . . . . . . . . . . . Retrieved Components 10 | . 10 . . . . . . . . . . . . . . Parts Scanalyzed 1 | . . . 1 . . . . . . . . . . . . Part Schematics Acquired . | . . . . . . . . . . . . . . . . Parts Damaged . | . . . . . . . . . . . . . . . . Bothacking | -11 -10 -10 -9 -9 -9 -8 -8 -8 -8 -7 -7 -7 -7 -7 -7 ------------ Run | Yrd Mat Min Mat Min Exi Min Mat Gar Mat Fac Gar Fac Gar Fac Gar Used RIF Installer 2 | . . . . . . . . 1 . . . . 1 . . Watcher Feeds 1 | . . . . . . . . . . . . . 1 . . Robots Hacked 14 | . . . . . 3 . . . . 5 1 5 . . . Non-combat 13 | . . . . . 3 . . . . 5 . 5 . . . Combat 1 | . . . . . . . . . . . 1 . . . . Robot Hacks Applied 14 | . . . . . 3 . . . . 5 1 5 . . . parse_system 3 | . . . . . 3 . . . . . . . . . . find_chute 2 | . . . . . . . . . . 2 . . . . . deconstruct_machine 1 | . . . . . . . . . . . . 1 . . . block_reporting 2 | . . . . . . . . . . 2 . . . . . map_route 1 | . . . . . . . . . . . . 1 . . . formatsys_low 4 | . . . . . . . . . . 1 . 3 . . . formatsys_high 1 | . . . . . . . . . . . 1 . . . . Relay Couplers Released 27 | . . . . . . . . . . . 12 3 12 . . Ejected 3 | . . . . . . . . . . . . 3 . . . Machine Destruction 24 | . . . . . . . . . . . 12 . 12 . . Attached 7 | . . . . . . . . . . 1 4 1 1 . . Fabnet Peak Effective % . | . . . . . . . . . . . . . . . . Robots Rewired 2 | . . . . . . . . . . . 2 . . . . Allies Hacked . | . . . . . . . . . . . . . . . . Hacks Repelled . | . . . . . . . . . . . . . . . . Allies | -11 -10 -10 -9 -9 -9 -8 -8 -8 -8 -7 -7 -7 -7 -7 -7 -------- Run | Yrd Mat Min Mat Min Exi Min Mat Gar Mat Fac Gar Fac Gar Fac Gar Total Allies 18 | . . 5 . . . . . 2 . 3 5 3 . . . Largest Group 5 | . . 5 4 . . . . 2 . 2 4 5 2 1 . Highest-Rated Group 193 | . . 82 66 . . . . 59 . 64 193 193 26 13 . Highest-Rated Ally 80 | . . 31 31 . . . . 39 . 32 80 80 13 13 . Total Orders 22 | . . . . . 2 . . . . . 8 5 7 . . STAY 7 | . . . . . . . . . . . 2 2 3 . . ROAM 1 | . . . . . . . . . . . . . 1 . . FOLLOW 4 | . . . . . . . . . . . 2 1 1 . . DROP 5 | . . . . . . . . . . . 2 2 1 . . PICKUP 1 | . . . . . . . . . . . 1 . . . . COLLECT 2 | . . . . . . . . . . . 1 . 1 . . EXPLORE 1 | . . . . . 1 . . . . . . . . . . RETURN 1 | . . . . . 1 . . . . . . . . . . Ally Attacks 135 | . . 14 32 . . . . 12 . 1 34 42 . . . Total Damage 2727 | . . 106 451 . . . . 213 . 15 525 1417 . . . Kills 35 | . . 3 10 . . . . 3 . . 8 11 . . . Allies Corrupted 1 | . . . . . . . . . . . . 1 . . . Allies Melted . | . . . . . . . . . . . . . . . . Intel | -11 -10 -10 -9 -9 -9 -8 -8 -8 -8 -7 -7 -7 -7 -7 -7 ------- Run | Yrd Mat Min Mat Min Exi Min Mat Gar Mat Fac Gar Fac Gar Fac Gar Active Infowar (turns) 1508 | . . . . . . . 1 193 638 . 607 69 . . . Jamming 1507 | . . . . . . . . 193 638 . 607 69 . . . ECM 1 | . . . . . . . 1 . . . . . . . . Robot Analysis Total 4 | . 1 . 1 . . . 2 . . . . . . . . Derelict Logs Recovered 4 | . . 1 . 3 . . . . . . . . . . . Drone Launches 1 | . . . . . 1 . . . . . . . . . . Drone Recoveries 1 | . . . . . 1 . . . . . . . . . . Exploration | -11 -10 -10 -9 -9 -9 -8 -8 -8 -8 -7 -7 -7 -7 -7 -7 ------------- Run | Yrd Mat Min Mat Min Exi Min Mat Gar Mat Fac Gar Fac Gar Fac Gar Turns Passed 348590 | 82 1755 1409 3734 1798 1463 1330 2565 1347 825 392 1143 776 329576 232 163 Spaces Moved 18229 | 50 699 531 1086 554 449 393 803 444 257 961 1576 1842 7942 421 221 Core 6925 | . . . . . . . . . . . . . 6592 112 221 Treads 5266 | 50 699 531 1086 554 449 393 803 444 257 . . . . . . Legs . | . . . . . . . . . . . . . . . . Wheels . | . . . . . . . . . . . . . . . . Hover . | . . . . . . . . . . . . . . . . Flight 6038 | . . . . . . . . . . 961 1576 1842 1350 309 . Fastest Speed 27 | 160 160 240 240 320 320 320 240 246 241 27 27 27 27 30 50 Average Speed 1890 | 160 218 240 303 320 320 320 252 246 244 27 27 27 4139 43 50 Slowest Speed 5100 | 160 240 240 320 320 320 320 326 560 246 103 27 27 5100 295 50 Overloaded Moves . | . . . . . . . . . . . . . . . . Propulsion Burnouts . | . . . . . . . . . . . . . . . . Robots Hopped 48 | . . . . . . . . . . 31 . 9 . 8 . Potential Cave-ins 2 | . . . . . . . . . . . . 2 . . . Cave-ins Triggered . | . . . . . . . . . . . . . . . . Exploration Rate (%) 59 | 4 81 97 96 97 91 80 57 65 35 23 85 34 70 12 29 Regions Visited 15 Branch Regions 4 Pre-discovered Areas 4 | . 1 1 . 1 1 . . . . . . . . . . Known Exits Taken 8 | . 1 1 1 . . . 1 . 1 1 . 1 . 1 . Unknown Exits Taken 4 | 1 . . . 1 1 1 . . . . . . . . . Scrap Searched 3 | . . 1 . 1 . 1 . . . . . . . . . Spaces Dug 76 | . . . . . . 25 3 . . 1 9 38 . . . Terrain Destroyed 285 | . . . 42 . . 25 52 39 . 1 43 70 13 . . Melee 3 | . . . . . . . . . . 1 2 . . . . Projectile 30 | . . . . . . . 14 1 . . 2 . 13 . . AOE 251 | . . . 42 . . 25 38 38 . . 39 69 . . . Terrain Rammed 8 | . . . . . . . . . . . . . 2 6 . Walls Destroyed . | . . . . . . . . . . . . . . . . Machines Disabled . | . . . . . . . . . . . . . . . . Actions | -11 -10 -10 -9 -9 -9 -8 -8 -8 -8 -7 -7 -7 -7 -7 -7 --------- Run | Yrd Mat Min Mat Min Exi Min Mat Gar Mat Fac Gar Fac Gar Fac Gar Total 20846 | 51 809 650 1346 564 476 425 1089 587 347 1046 2199 2040 8484 461 272 Wait 1269 | . 1 92 73 . 11 4 46 27 13 52 421 116 331 35 47 Move 18124 | 49 698 530 1085 553 448 392 803 443 256 903 1575 1823 7941 404 221 Hop 44 | . . . . . . . . . . 27 . 9 . 8 . Pick Up 100 | . 17 6 24 . 1 3 26 5 7 4 3 2 1 1 . Fast Attach 58 | . 2 . 6 . 4 . 14 4 3 6 12 1 6 . . Attach 46 | . 1 . 9 . . 3 9 8 4 7 1 2 . 1 1 Detach 34 | . . . 3 . 1 1 3 2 1 4 7 . 10 2 . Swap 111 | 2 7 3 18 2 1 1 20 10 4 5 14 18 6 . . Drop 137 | . 5 7 27 1 6 1 37 4 8 23 7 2 8 1 . Fire 610 | . 72 8 92 4 . 16 126 59 50 6 29 35 109 3 1 Melee 47 | . . . . . 3 . . . . 8 25 11 . . . Ram 11 | . . . . . . . . . . . . 1 2 6 2 Kick . | . . . . . . . . . . . . . . . . Crush 34 | . 6 4 9 4 . 4 5 1 1 . . . . . . Escape Stasis 165 | . . . . . . . . 24 . . 72 . 69 . . Rewire 4 | . . . . . 1 . . . . 1 1 . 1 . . Trap 52 | . . . . . . . . . . . 32 20 . . . Miscellaneous . | . . . . . . . . . . . . . . . . Route ------- -11/Scrapyard -10/Materials (discovered 5 exits: *Mat x3 / *Min / Sub) -10/Mines (discovered 3 exits: *Mat x2 / Sub) -9/Materials (discovered 5 exits: *Mat x3 / *Min x2) -9/Mines (discovered 4 exits: *Mat x2 / *Exi / [*Zio]) -9/Exiles (discovered 2 exits: [*Min x2]) -8/Mines -8/Materials (discovered 2 exits: *Fac / Gar) -8/Garrison (discovered 3 exits: *Mat x3) -8/Materials -7/Factory (discovered 2 exits: Sto / Gar) -7/Garrison (discovered 3 exits: *Fac x3) -7/Factory (discovered 3 exits: [*Fac x2] / Gar) -7/Garrison (discovered 3 exits: *Fac x3) -7/Factory (discovered 2 exits: Gar / Gar) -7/Garrison History --------- Turn | Location | Event 4 | -11/Scrapyard | Discovered new exit (range 1) 83 | -11/Scrapyard | Entered Materials 84 | -10/Materials | Met a group of wandering Federalists 307 | -10/Materials | Build established: Mutant 323 | -10/Materials | Discovered new exit (range 12) 1013 | -10/Materials | Discovered new exit (range 15) 1100 | -10/Materials | Identified exit to Mines 1100 | -10/Materials | Identified exit to Subcaves 1100 | -10/Materials | Identified exit to Materials 1165 | -10/Materials | Learned location of Mines (-8) 1222 | -10/Materials | Learned 2 Mines zone layouts 1269 | -10/Materials | Learned location of 1 exit from Recycling 1331 | -10/Materials | Learned 4 Subcaves zone layouts 1417 | -10/Materials | Learned location of 2 exits from Mines 1476 | -10/Materials | Learned Storage security intel 1838 | -10/Materials | Entered Mines 1862 | -10/Mines | Joined a pair of Derelicts in attacking an 0b10 outpost 2348 | -10/Mines | Assisted by bots powering up and referring to "LRC-V3" 2593 | -10/Mines | Found a damaged Exp. Sensor Array with a note attached 2598 | -10/Mines | Found Prototype Device 2858 | -10/Mines | Received a Rocket Launcher from a helpful Derelict 2950 | -10/Mines | Excavation squad dispatched 2950 | -10/Mines | A large section of the Mines collapsed 3109 | -10/Mines | Learned location of Storage (-7) 3247 | -10/Mines | Entered Materials 3247 | -9/Materials | Accompanied by 4 allies 3247 | -9/Materials | Evolved 2 slots: Utility x1, Weapon x1 3252 | -9/Materials | Led the pair of lost Derelicts to an unsafe place 3474 | -9/Materials | Discovered new exit (range 16) 3532 | -9/Materials | Identified exit to Mines 3613 | -9/Materials | Build established: Tank 3676 | -9/Materials | Repaired Lgt. Armor Plating 4078 | -9/Materials | Central database locked down 4147 | -9/Materials | Discovered new exit (range 16) 4383 | -9/Materials | Lost 3 parts (1u2w) 5789 | -9/Materials | Build established: Scavenger-Tank 6257 | -9/Materials | Discovered new exit (range 13) 6447 | -9/Materials | First assault squad dispatched 6760 | -9/Materials | Build established: Tank 6786 | -9/Materials | Identified Exp. Sensor Array 6981 | -9/Materials | Entered Mines 6996 | -9/Mines | Met a Derelict bent on vengeance 6997 | -9/Mines | Deemed a non-threat by the Exiles lab entrance 7001 | -9/Mines | Discovered new exit (range 5) 7071 | -9/Mines | Learned location of 1 exit from Materials 7097 | -9/Mines | Discovered new exit (range 8) 7249 | -9/Mines | Found a hidden stash of uninstalled traps 7553 | -9/Mines | A Derelict revealed a hidden shortcut to a safe place 8029 | -9/Mines | Learned Materials terminal intel 8438 | -9/Mines | Discovered new exit (range 14) 8779 | -9/Mines | Entered Exiles 8857 | -9/Exiles | Met 8R-AWN 8912 | -9/Exiles | Met EX-HEX 9004 | -9/Exiles | Met EX-BIN 9049 | -9/Exiles | Aligned with FarCom system 9052 | -9/Exiles | Given EX-Vault access code 9067 | -9/Exiles | Build established: Mutant 9126 | -9/Exiles | Opened EX-Vault 9159 | -9/Exiles | Found Supersonic Drone Bay 9173 | -9/Exiles | Discovered new exit (range 57) 9179 | -9/Exiles | Discovered new exit (range 69) 9266 | -9/Exiles | Warned to stay clear of 0b10 Research branches 9332 | -9/Exiles | Found Firepult 9510 | -9/Exiles | Met EX-DEC 9530 | -9/Exiles | Learned location of Zion (-7) 9931 | -9/Exiles | Found 0b10 Alert Chip 10242 | -9/Exiles | Left Exiles lab with Firepult 10242 | -9/Exiles | Entered Mines 10575 | -8/Mines | Build established: Scavenger-Tank 11530 | -8/Mines | Discovered new exit (range 5) 11572 | -8/Mines | Entered Materials 11572 | -8/Materials | Evolved 2 slots: Propulsion x1, Utility x1 11573 | -8/Materials | Identified exit to Factory 11574 | -8/Materials | Loaded intel: 12 terminal locations 13114 | -8/Materials | Garrison activated, responded to threat 13208 | -8/Materials | Destroyed 11 combat bots 13223 | -8/Materials | Lost 7 parts (1p3u3w) 13581 | -8/Materials | Garrison activated, responded to threat 13626 | -8/Materials | Build established: Scavenger-Skirmisher 13636 | -8/Materials | Destroyed 8 combat bots 13972 | -8/Materials | First assault squad dispatched 14127 | -8/Materials | Garrison activated, responded to threat 14137 | -8/Materials | Identified exit to Garrison 14137 | -8/Materials | Entered Garrison 14163 | -8/Garrison | Triggered checkpoint 14190 | -8/Garrison | Core integrity fell below 50% 14207 | -8/Garrison | System corruption reached 10% 14345 | -8/Garrison | Installed Relay Interface Framework 14560 | -8/Garrison | Triggered checkpoint 14627 | -8/Garrison | Lost 3 parts (1p2u) 14761 | -8/Garrison | Rescued a captive Derelict 14767 | -8/Garrison | Rescued a captive Derelict 14778 | -8/Garrison | Discovered new exit (range 12) 15135 | -8/Garrison | Discovered new exit (range 10) 15301 | -8/Garrison | Triggered checkpoint 15442 | -8/Garrison | Discovered new exit (range 8) 15484 | -8/Garrison | Entered Materials 16146 | -8/Materials | Core integrity fell below 20% 16172 | -8/Materials | Lost 3 parts (2u1w) 16268 | -8/Materials | Discovered exit to Factory (range 7) 16309 | -8/Materials | Entered Factory 16309 | -7/Factory | Evolved 2 slots: Propulsion x1, Weapon x1 16310 | -7/Factory | Identified exit to Storage 16682 | -7/Factory | Build established: Sprinter 16701 | -7/Factory | Identified exit to Garrison 16701 | -7/Factory | Entered Garrison 16701 | -7/Garrison | Accompanied by 1 ally 16759 | -7/Garrison | Triggered checkpoint 17096 | -7/Garrison | Triggered checkpoint 17113 | -7/Garrison | Garrison Relay disabled 17143 | -7/Garrison | Triggered checkpoint 17215 | -7/Garrison | Triggered checkpoint 17233 | -7/Garrison | Garrison Relay disabled 17243 | -7/Garrison | Discovered new exit (range 10) 17312 | -7/Garrison | Triggered checkpoint 17378 | -7/Garrison | Discovered new exit (range 10) 17400 | -7/Garrison | Discovered new exit (range 15) 17435 | -7/Garrison | Garrison Relay disabled 17520 | -7/Garrison | Found embedded Infiltrators 17844 | -7/Garrison | Entered Factory 17844 | -7/Factory | Accompanied by 4 allies 17957 | -7/Factory | Discovered new exit (range 5) 18450 | -7/Factory | Identified exit to Garrison 18482 | -7/Factory | Lost 3 allies 18493 | -7/Factory | Discovered new exit (range 12) 18620 | -7/Factory | Entered Garrison 18620 | -7/Garrison | Accompanied by 2 allies 18690 | -7/Garrison | Triggered checkpoint 18769 | -7/Garrison | Expanded RIF knowledge: Watcher Feeds 18772 | -7/Garrison | Garrison Relay disabled 18778 | -7/Garrison | Triggered checkpoint 18830 | -7/Garrison | Triggered checkpoint 18969 | -7/Garrison | Discovered new exit (range 10) 18984 | -7/Garrison | Triggered checkpoint 18985 | -7/Garrison | Garrison Relay disabled 19003 | -7/Garrison | Triggered checkpoint 19138 | -7/Garrison | Triggered checkpoint 19146 | -7/Garrison | Destroyed 9 combat bots 19186 | -7/Garrison | Garrison Relay disabled 19197 | -7/Garrison | Discovered new exit (range 3) 19264 | -7/Garrison | Discovered new exit (range 10) 19362 | -7/Garrison | Discovered new exit (range 49) 19362 | -7/Garrison | Discovered new exit (range 58) 19362 | -7/Garrison | Discovered new exit (range 21) 19715 | -7/Garrison | Build established: Mutant 20419 | -7/Garrison | Build established: Hauler-Skirmisher 348196 | -7/Garrison | Entered Factory 348196 | -7/Factory | Accompanied by 1 ally 348219 | -7/Factory | Identified exit to Garrison 348264 | -7/Factory | Core integrity fell below 50% 348284 | -7/Factory | System corruption reached 10% 348314 | -7/Factory | Lost 4 parts (3n1w) 348418 | -7/Factory | Identified exit to Garrison 348420 | -7/Factory | Core integrity fell below 20% 348428 | -7/Factory | Entered Garrison 348498 | -7/Garrison | Triggered checkpoint 348581 | -7/Garrison | Build established: Mutant 348591 | -7/Garrison | Destroyed by P-60 Hacker with Shock Rifle Last Messages --------------- 48425_ Destabilizing: Core damaged (-7). 48426_ Slammed into Wall. 48428_ Destabilizing: Core damaged (-7). LOCATION=GARRISON GOAL=ESCAPE 48431_ Receiving FarCom transmissions... 48436_ Detecting nearby RIF Installer. 48450_ 6YZ / OO,9KX%I4QFROY 48466_ G4DZMMP D7MB36CVF I8EZ0 48488_ System corrupted: Matter fused (-9). 48501_ Beams of light sweep through the air. An alarm sounds. 48525_ System corrupted: Heat flow error (+216). 48545_ System corrupted: Heat flow error (+266). 48564_ System corrupted: Heat flow error (+244). 48579_ System corrupted: Energy discharge (-33). 48581_ Machine disabled. 48582_ Slammed into P-60 Hacker. 48585_ Chain reaction triggered in Unknown Power Core. 48585_ P-60 Hacker destroyed. 48590_ P-60 Hacker heat damages Unknown Energy Gun. Map ----- +----------------------------------------------------+ | ?????????????????????? "??????????? | | ?????????????????????? "??????????? | | ??????????????????????? "??????????? | | ??????????????????????? "??????????? | | ???????????????????????# ## ## #??????????? | | ???????????????????????# ## ## #??????????? | | ???????????????????????# #??????????? | | ???????????????????????# ^ #??????????? | | ???????????????????????# ^ ^ #??????????? | | ???????????????????????# ##""""## ##??????????? | | ???????????????????????# #?ll??????????????????? | | ???????????????????????# #?????????????????????? | | ???????????????????????# #?????????????????????? | | ???????????????????????# ;?????????????????????? | | ???????????????????????# #?????????????????????? | | ???????????????????????# #?????????????????????? | | ??###################### #?????????????????????? | | ??# #?????????????????????? | | ??# #?????????????????????? | | ??# #?????????????????????? | | ??# ###################pp##????????????????????? | | ??# #???????????###### ##???????????????????? | | ??# #???????????#"" ! "#???????????????????? | | ??# #???????????#"! [%[ "#???????????????????? | | ??# #???????????#"! = "#???????????????????? | | ??# #???????????#"! @ !"#???????????????????? | | ??# #???????????#"! !"#???????????????????? | | ??# #???????????#"! !"#???????????????????? | | ??# #???????????#"! ! #???????????????????? | | ??# #???????????#" "#???????????????????? | | ??# #???????????#" !!!! ""#???????????????????? | | ??# ????????????#"""""" "#???????????????????? | | ??# ????????????############???????????????????? | | ?? ???????????????????????????????????????????? | | ??? ???????????????????????????????????????????? | | ?????????????????????????????????????????????????? | | ?????????????????????????????????????????????????? | | ?????????????????????????????????????????????????? | | ?????????????????????????????????????????????????? | | ?????????????????????????????????????????????????? | | ?????????????????????????????????????????????????? | | ?????????????????????????????????????????????????? | | ?????????????????????????????????????????????????? | | ?????????????????????????????????????????????????? | | ?????????????????????????????????????????????????? | | ?????????????????????????????????????????????????? | | ?????????????????????????????????????????????????? | | ?????????????????????????????????????????????????? | | ?????????????????????????????????????????????????? | | ?????????????????????????????????????????????????? | +----------------------------------------------------+ Best States ------------- Heat Dissipation 58 Energy Generation 18 Energy Capacity 280 Matter Stores 300 Matter Capacity 300 Sight Range 16 Terrain Scan Density 10 ECM Strength 1 Jamming Range 12 Armor Coverage 600 Evasion (%) 64 Targeting Accuracy 8 Core Analysis 6 Recoil Reduction 3 Offensive Hacking 20 Relay Coupler Types 1 Relay Coupler Value 34 Authchip Count 1 Item Schematics ----------------- Adv. Hacking Suite | -7/Factory | Hacked Robot Schematics ------------------ None Fabricated ------------ Nothing Repaired ---------- Lgt. Armor Plating | 14% | -9/Materials Alien Tech Used ----------------- None Achievements -------------- None Challenges ------------ None Game ------ Seed EnergyAssemblyAutobeam Manual? 0 Play Time 02:31:01 Cumulative 496.2 hours Start 2025.06.30 @ 16:53:40 End 2025.06.30 @ 20:27:19 Sessions 10 Manual Loads 0 Difficulty Rogue Special Mode None Game No. 220 Rogue 220 Adventurer 0 Explorer 0 Win Type - Total 23 Types 7/4/6/2/1/0/1/1/0/1 Lore% 89 Gallery% 85 Achievement% 80 Wizard Run 0 Options --------- Layout 0 ASCII 0 Keyboard 0 Movement Arrows Keybinds 0 Fullscreen 2 Font 18/SmallcapsGlow Map View 76x50 Zoom Use 0% Tactical HUD 1 Map Filters NONE Filters NONE Steam 1 RUN: 2677493b-23fc-4a1c-a996-cc015c2c7691